bitfinex-derivatives/quotes_BTCF0:USTF0_20241217
["timestamp","ask_amount","ask_price","bid_price","bid_amount"]
[1734446711396,2.17318308,107770.0,107760.0,0.64561482]
[1734446711790,2.17318308,107770.0,107760.0,0.28481482]
[1734446712095,2.17318308,107770.0,107760.0,0.64561482]
[1734446712400,2.03501234,107770.0,107760.0,0.94561482]
[1734446712696,1.37924276,107770.0,107760.0,1.01201482]
[1734446712894,1.37924276,107770.0,107760.0,0.71201482]
[1734446713395,1.37924276,107770.0,107760.0,1.01201482]
[1734446713588,1.37924276,107770.0,107760.0,0.28481482]
[1734446714198,1.74004276,107770.0,107760.0,0.28481482]
[1734446714499,1.37924276,107770.0,107760.0,0.94561482]
[1734446714703,1.37924276,107770.0,107760.0,0.64561482]
[1734446714893,1.37924276,107770.0,107760.0,1.08366649]
[1734446715091,1.37924276,107770.0,107760.0,0.72286649]
[1734446715288,1.35824511,107770.0,107760.0,0.73401078]
[1734446715491,1.71904511,107770.0,107760.0,7.144e-05]
[1734446715696,2.30378449,107770.0,107760.0,0.3273749]
[1734446715898,0.046406,107750.0,107740.0,0.01849117]
[1734446716094,1.00634838,107750.0,107720.0,0.43805167]
[1734446716399,0.768014,107730.0,107710.0,0.00056]
[1734446716694,0.407218,107720.0,107690.0,0.38235873]
[1734446716889,0.407228,107700.0,107680.0,0.38235873]
[1734446717092,0.407231,107690.0,107670.0,0.8204104]
[1734446717284,0.60053532,107730.0,107680.0,0.23843599]
[1734446717492,0.40860794,107730.0,107700.0,0.407226]
[1734446717694,0.64695032,107730.0,107700.0,0.046424]
[1734446717898,0.407226,107710.0,107690.0,0.407231]
[1734446718101,0.407226,107710.0,107700.0,0.046427]
[1734446718102,0.3608,107710.0,107700.0,0.046427]
[1734446718399,0.00139294,107730.0,107700.0,0.59914238]
[1734446718602,0.3608,107750.0,107720.0,0.3608]
[1734446718789,0.3608,107740.0,107730.0,0.046413]
[1734446718986,0.3608,107740.0,107720.0,0.3608]
[1734446719185,0.3608,107730.0,107710.0,0.0465086]
[1734446719404,0.3608,107720.0,107710.0,8.96e-05]
[1734446719894,0.5043,107730.0,107710.0,8.96e-05]
[1734446720088,0.4268,107750.0,107730.0,0.046412]
[1734446720295,0.066,107750.0,107740.0,0.04641]
[1734446720497,1.62054511,107770.0,107750.0,0.046406]
[1734446720698,1.58528549,107770.0,107740.0,0.046409]
[1734446720897,0.046401,107760.0,107740.0,0.046409]
[1734446721203,1.00054511,107770.0,107760.0,0.046401]
[1734446721793,1.00054511,107770.0,107760.0,0.76808529]
[1734446721794,0.63974511,107770.0,107760.0,0.76808529]
[1734446722006,0.61381514,107770.0,107760.0,0.76808529]
[1734446722789,0.61381514,107770.0,107760.0,0.04648529]
[1734446722996,0.60581514,107770.0,107760.0,0.40728529]
[1734446723189,0.60581514,107770.0,107760.0,0.64562767]
[1734446723603,0.60581514,107770.0,107760.0,0.40728529]
[1734446723905,0.58181514,107770.0,107760.0,0.40728529]
[1734446724808,0.58181514,107770.0,107760.0,0.64562767]
[1734446725100,2.6587371,107800.0,107790.0,0.046388]
[1734446725300,2.65813709,107800.0,107790.0,0.407188]
[1734446726105,2.65813709,107800.0,107780.0,0.3608]
[1734446726399,0.59914238,107790.0,107760.0,8.429e-05]
[1734446726603,0.59914238,107790.0,107750.0,0.49025502]
[1734446726604,0.046401,107760.0,107750.0,0.49025502]
[1734446726809,0.046406,107750.0,107730.0,0.4359981]
[1734446727000,0.046406,107750.0,107720.0,0.046417]
[1734446727001,0.71824838,107750.0,107720.0,0.046417]
[1734446727197,0.35744938,107750.0,107720.0,0.407217]
[1734446727498,0.0727,107750.0,107730.0,0.407213]
[1734446727703,0.0727,107750.0,107740.0,9.347e-05]
[1734446728405,0.0727,107750.0,107740.0,0.40730347]
[1734446728599,0.0727,107750.0,107730.0,0.3608]
[1734446728801,0.3608,107740.0,107710.0,0.85733971]
[1734446729012,0.67184238,107750.0,107730.0,0.407214]
[1734446729303,0.0727,107750.0,107740.0,0.04641]
[1734446729504,0.0727,107750.0,107740.0,0.04652619]
[1734446729717,0.35744838,107750.0,107740.0,0.00011619]
[1734446729904,0.71824838,107750.0,107740.0,0.00011619]
[1734446730109,1.01824838,107750.0,107740.0,0.00011619]
[1734446730599,1.01824838,107750.0,107710.0,0.01411861]
[1734446730910,0.40721,107740.0,107730.0,0.046414]
[1734446731095,0.04641,107740.0,107730.0,0.046414]
[1734446731298,0.40721,107740.0,107730.0,0.046414]
[1734446731503,0.89914238,107740.0,107700.0,0.07883876]
[1734446731808,0.407218,107720.0,107710.0,8.423e-05]
[1734446732202,0.94556038,107720.0,107710.0,8.423e-05]
[1734446732808,0.407218,107720.0,107710.0,8.423e-05]
[1734446733116,0.407218,107720.0,107710.0,0.04650723]
[1734446733305,0.707218,107720.0,107710.0,8.423e-05]
[1734446733611,0.407218,107720.0,107710.0,8.423e-05]
[1734446733807,0.0706,107740.0,107730.0,0.046414]
[1734446734106,0.117011,107740.0,107720.0,0.407217]
[1734446734307,0.0706,107740.0,107730.0,0.046414]
[1734446734500,0.4314,107740.0,107730.0,0.046414]
[1734446734802,0.4314,107740.0,107720.0,0.74313061]
[1734446735010,0.4314,107740.0,107710.0,0.79688233]
[1734446735011,0.407214,107730.0,107710.0,0.42883584]
[1734446735205,0.3608,107720.0,107710.0,0.86483394]
[1734446735510,0.407214,107730.0,107710.0,0.38241484]
[1734446735511,0.3,107730.0,107710.0,0.38241484]
[1734446735726,0.3,107730.0,107720.0,0.046418]
[1734446735727,0.407215,107730.0,107720.0,0.046418]
[1734446735897,0.3608,107730.0,107720.0,0.046418]
[1734446736301,0.407216,107730.0,107710.0,0.42883684]
[1734446736502,0.407218,107720.0,107710.0,0.04650623]
[1734446737011,0.64556038,107720.0,107710.0,8.423e-05]
[1734446737227,0.046424,107710.0,107690.0,0.86475871]
[1734446737406,0.046424,107710.0,107690.0,0.42876061]
[1734446737603,0.47752,107720.0,107700.0,0.046427]
[1734446737800,0.6608,107720.0,107710.0,0.046423]
[1734446738001,0.3608,107730.0,107720.0,0.046418]
[1734446738912,0.3608,107730.0,107710.0,9.416e-05]
[1734446739110,0.407214,107730.0,107710.0,0.42884677]
[1734446739407,0.407218,107720.0,107710.0,0.32814735]
[1734446739804,0.3608,107720.0,107710.0,0.37456935]
[1734446740003,0.407215,107730.0,107710.0,0.37456935]
[1734446740204,0.477015,107730.0,107720.0,0.32805319]
[1734446740815,0.837815,107730.0,107720.0,0.32805319]
[1734446741114,0.837815,107730.0,107710.0,0.32814735]
[1734446741115,0.046418,107720.0,107710.0,0.32814735]
[1734446741411,0.407218,107720.0,107710.0,0.32814735]
[1734446741715,0.707218,107720.0,107710.0,9.416e-05]
[1734446741904,0.407218,107720.0,107710.0,0.04651716]
[1734446742210,0.407218,107720.0,107710.0,0.37457035]
[1734446742413,0.407218,107720.0,107710.0,0.32814735]
[1734446742712,0.046418,107720.0,107710.0,0.37457035]
[1734446742912,1.01174238,107730.0,107720.0,0.046418]
[1734446742913,0.819815,107730.0,107720.0,0.046418]
[1734446743114,0.819815,107730.0,107720.0,0.37444923]
[1734446743313,0.819815,107730.0,107720.0,0.32803123]
[1734446744308,0.819815,107730.0,107710.0,0.32812539]
[1734446744309,1.35815738,107730.0,107710.0,0.32812539]
[1734446744514,0.407218,107720.0,107710.0,0.32812539]
[1734446744703,0.64556038,107720.0,107710.0,0.32812539]
[1734446745011,0.64556038,107720.0,107680.0,0.38233061]
[1734446745012,0.046431,107690.0,107680.0,0.38233061]
[1734446745201,0.64557338,107690.0,107670.0,0.42876961]
[1734446745402,0.046436,107680.0,107670.0,0.38233061]
[1734446745609,0.3608,107680.0,107670.0,0.04644]
[1734446745807,0.046432,107690.0,107680.0,0.046435]
[1734446746014,0.407232,107690.0,107680.0,0.046435]
[1734446746217,0.046432,107690.0,107680.0,0.046435]
[1734446746410,0.046436,107680.0,107670.0,0.42887848]
[1734446746616,0.407233,107690.0,107670.0,0.04654587]
[1734446746808,0.046436,107680.0,107670.0,0.42887648]
[1734446747009,0.407233,107690.0,107680.0,0.046436]
[1734446747210,0.046436,107680.0,107670.0,0.42887948]
[1734446747515,0.046436,107680.0,107670.0,0.04654887]
[1734446747816,0.046436,107680.0,107670.0,0.04644]
[1734446748029,0.3608,107680.0,107650.0,0.6151937]
[1734446748215,0.64557438,107690.0,107670.0,0.59914238]
[1734446748216,0.046432,107690.0,107670.0,0.59914238]
[1734446748416,0.046432,107690.0,107670.0,0.64557838]
[1734446748728,0.046432,107690.0,107680.0,0.00011793]
[1734446748919,0.407228,107700.0,107680.0,0.04655393]
[1734446749122,0.3608,107700.0,107680.0,0.36091793]
[1734446749317,0.04643,107700.0,107680.0,0.40735293]
[1734446749625,0.04643,107700.0,107690.0,0.046431]
[1734446750016,0.09286,107700.0,107680.0,0.04655293]
[1734446750323,0.407231,107690.0,107680.0,0.00011793]
[1734446750529,0.046431,107690.0,107680.0,0.00011793]
[1734446750819,0.407228,107700.0,107680.0,0.40735093]
[1734446751025,0.3608,107700.0,107690.0,0.046431]
[1734446751224,0.408693,107710.0,107690.0,0.046431]
[1734446752018,0.362268,107710.0,107690.0,0.64557338]
[1734446752230,0.001468,107710.0,107700.0,0.046427]
[1734446752425,0.047892,107710.0,107690.0,0.3608]
[1734446752623,0.047892,107710.0,107680.0,0.36091793]
[1734446752624,0.046428,107700.0,107680.0,0.36091793]
[1734446752924,0.407231,107690.0,107680.0,0.00011793]
[1734446753822,0.046429,107700.0,107680.0,0.04655393]
[1734446754123,0.001468,107710.0,107690.0,0.23834238]
[1734446754317,0.047891,107710.0,107690.0,0.64557138]
[1734446754516,0.001468,107710.0,107690.0,0.59914238]
[1734446754721,0.001468,107710.0,107700.0,0.046427]
[1734446755025,0.001468,107710.0,107690.0,0.74557338]
[1734446755218,0.047891,107710.0,107690.0,0.38477338]
[1734446755422,0.408691,107710.0,107690.0,0.38477338]
[1734446755623,0.046427,107700.0,107690.0,0.1]
[1734446756319,0.408693,107710.0,107690.0,0.38477338]
[1734446756720,0.408693,107710.0,107690.0,0.1]
[1734446756922,0.407227,107700.0,107690.0,0.1]
[1734446757116,0.046431,107690.0,107680.0,0.54504759]
[1734446757331,0.046431,107690.0,107680.0,0.44994759]
[1734446757631,0.3608,107690.0,107680.0,0.49638359]
[1734446757925,0.3608,107690.0,107680.0,0.55064051]
[1734446758327,0.3608,107690.0,107680.0,0.49939266]
[1734446758629,0.407228,107700.0,107680.0,0.49939266]
[1734446758825,0.407231,107690.0,107680.0,0.45295666]
[1734446759124,0.046428,107700.0,107680.0,0.86019266]
[1734446759331,0.362268,107710.0,107690.0,0.28477138]
[1734446759332,0.408692,107710.0,107690.0,0.28477138]
[1734446759529,0.408692,107710.0,107690.0,0.72377855]
[1734446760031,0.046427,107700.0,107690.0,0.43900717]
[1734446760226,0.047893,107710.0,107690.0,0.43900717]
[1734446760430,7.464e-05,107710.0,107700.0,0.407227]
[1734446760728,0.40859971,107750.0,107700.0,0.407227]
[1734446760729,0.40859871,107750.0,107730.0,0.046411]
[1734446761123,0.04641,107740.0,107720.0,0.64555938]
[1734446761327,0.04641,107740.0,107720.0,0.23834238]
[1734446761328,0.3608,107730.0,107720.0,0.23834238]
[1734446761528,0.407214,107730.0,107720.0,0.23834238]
[1734446761722,0.407214,107730.0,107720.0,0.23845228]
[1734446762022,0.407211,107740.0,107720.0,0.23845228]
[1734446762328,0.407211,107740.0,107720.0,0.64566928]
[1734446762527,0.407211,107740.0,107720.0,0.59925228]
[1734446762725,0.046414,107730.0,107720.0,0.0001099]
[1734446763423,0.407214,107730.0,107720.0,0.0001099]
[1734446764131,0.407214,107730.0,107690.0,0.58125663]
[1734446764132,0.94555638,107730.0,107690.0,0.58125663]
[1734446764329,0.046427,107700.0,107680.0,0.94733963]
[1734446764523,0.046427,107700.0,107690.0,0.046431]
[1734446764838,0.407225,107710.0,107690.0,0.046431]
[1734446765335,0.407225,107710.0,107700.0,0.00011108]
[1734446767827,0.3608,107710.0,107700.0,0.00011108]
[1734446768027,0.150415,107730.0,107710.0,0.04642]
[1734446768229,0.5576,107740.0,107720.0,0.407216]
[1734446768230,0.407211,107740.0,107720.0,0.407216]
[1734446768528,0.046414,107730.0,107720.0,0.046416]
[1734446768827,0.046411,107740.0,107720.0,0.407216]
[1734446769030,0.407211,107740.0,107720.0,0.407216]
[1734446769921,0.00150579,107750.0,107730.0,0.3608]
[1734446770129,0.00011308,107750.0,107740.0,0.40721]
[1734446770328,0.00011308,107750.0,107740.0,0.64555238]
[1734446770532,0.750034,107780.0,107760.0,0.0464]
[1734446770932,0.14189,107790.0,107770.0,0.407197]
[1734446771231,2.70452209,107800.0,107780.0,0.407192]
[1734446771434,3.06532209,107800.0,107780.0,0.407192]
[1734446771635,2.65821402,107800.0,107780.0,0.407192]
[1734446771837,2.65821402,107800.0,107790.0,0.407188]
[1734446772138,0.046388,107790.0,107780.0,0.3608]
[1734446772529,0.64553038,107790.0,107760.0,0.4604]
[1734446772728,0.046398,107770.0,107750.0,0.8440003]
[1734446772932,0.046403,107760.0,107740.0,0.43691026]
[1734446773133,0.64554038,107770.0,107750.0,0.3608]
[1734446773134,0.407198,107770.0,107750.0,0.3608]
[1734446773337,0.407198,107770.0,107750.0,0.407205]
[1734446773629,0.046398,107770.0,107750.0,0.407205]
[1734446773929,0.407198,107770.0,107740.0,0.48331826]
[1734446774135,0.046406,107750.0,107740.0,0.00011396]
[1734446774336,0.407206,107750.0,107740.0,0.00011396]
[1734446774823,1.00634838,107750.0,107740.0,0.00011396]
[1734446775225,0.768006,107750.0,107740.0,0.00011396]
[1734446775425,0.407203,107760.0,107740.0,0.40732196]
[1734446775625,0.407203,107760.0,107750.0,0.046406]
[1734446775626,0.3608,107760.0,107750.0,0.046406]
[1734446775821,0.389158,107770.0,107750.0,0.407206]
[1734446776023,0.749958,107770.0,107750.0,0.407206]
[1734446776228,0.59914238,107760.0,107740.0,0.00011396]
[1734446776423,0.407206,107750.0,107740.0,0.00011396]
[1734446776724,0.64554838,107750.0,107740.0,0.00011396]
[1734446776933,0.407206,107750.0,107740.0,0.00011396]
[1734446777329,0.64554838,107750.0,107740.0,0.00011396]
[1734446777523,0.407206,107750.0,107740.0,0.00011396]
[1734446778330,0.3608,107760.0,107740.0,0.00011396]
[1734446778331,0.046402,107760.0,107740.0,0.04652396]
[1734446778530,0.3608,107760.0,107750.0,0.046406]
[1734446778729,0.3608,107760.0,107740.0,0.04652296]
[1734446779039,0.407202,107760.0,107740.0,0.40732296]
[1734446779535,0.407202,107760.0,107740.0,0.00011396]
[1734446779732,0.3608,107750.0,107740.0,0.00011396]
[1734446779927,0.046406,107750.0,107740.0,0.00011396]
[1734446780124,0.3608,107750.0,107740.0,0.04652396]
[1734446780324,0.407203,107760.0,107740.0,0.04652396]
[1734446780531,0.3608,107750.0,107740.0,0.00011396]
[1734446780737,0.64554838,107750.0,107740.0,0.00011396]
[1734446781244,0.407206,107750.0,107740.0,0.00011396]
[1734446781433,0.046406,107750.0,107740.0,0.00011396]
[1734446782233,0.407206,107750.0,107740.0,0.00011396]
[1734446782539,0.64554838,107750.0,107740.0,0.00011396]
[1734446782931,0.28474838,107750.0,107740.0,0.00011396]
[1734446783133,0.64554538,107760.0,107740.0,0.04652296]
[1734446783329,0.046403,107760.0,107750.0,0.3608]
[1734446783627,0.749959,107770.0,107750.0,0.84417171]
[1734446783828,0.046401,107760.0,107750.0,0.79776571]
[1734446784137,0.046401,107760.0,107740.0,1.08431653]
[1734446784138,0.407201,107760.0,107740.0,0.9750751]
[1734446784536,0.407201,107760.0,107740.0,0.48348867]
[1734446784726,0.453605,107760.0,107740.0,0.48348867]
[1734446784933,0.407201,107760.0,107740.0,0.48348867]
[1734446785134,0.64554338,107760.0,107740.0,0.48348867]
[1734446785535,0.64554338,107760.0,107740.0,0.92906516]
[1734446785536,0.59914238,107750.0,107740.0,0.92906516]
[1734446785744,0.64554838,107750.0,107740.0,0.92906516]
[1734446786039,0.94554838,107750.0,107740.0,0.00011396]
[1734446786244,0.79074838,107750.0,107740.0,0.00011396]
[1734446787835,0.64554838,107750.0,107740.0,0.00011396]
[1734446789134,0.64554838,107750.0,107740.0,0.04652396]
[1734446789443,0.59914238,107750.0,107740.0,0.04652396]
[1734446789642,0.79074638,107760.0,107740.0,0.04652396]
[1734446789838,0.64554838,107750.0,107740.0,0.00011396]
[1734446790536,0.046406,107750.0,107740.0,0.00011396]
[1734446790850,0.407202,107760.0,107750.0,0.046406]
[1734446791141,0.64554438,107760.0,107750.0,0.43736477]
[1734446791543,0.64554438,107760.0,107740.0,0.43747873]
[1734446791845,0.407206,107750.0,107740.0,0.43747873]
[1734446792037,0.046406,107750.0,107740.0,0.43747873]
[1734446792437,0.407206,107750.0,107740.0,0.43747873]
[1734446792643,0.707206,107750.0,107740.0,0.00011396]
[1734446793149,0.046414,107730.0,107720.0,0.43736477]
[1734446793347,0.28475638,107730.0,107720.0,0.43831282]
[1734446793649,0.64555638,107730.0,107720.0,0.38365055]
[1734446794045,0.407214,107730.0,107720.0,0.43831282]
[1734446794242,0.40730821,107730.0,107720.0,0.82209835]
[1734446794442,0.40730821,107730.0,107720.0,0.43020353]
[1734446794843,0.04650821,107730.0,107720.0,0.82204151]
[1734446795038,0.40730821,107730.0,107720.0,0.86847153]
[1734446795247,0.04650821,107730.0,107720.0,0.43840834]
[1734446795438,0.04650821,107730.0,107720.0,0.48482234]
[1734446795839,9.421e-05,107730.0,107720.0,1.08396472]
[1734446796051,0.04779059,107760.0,107750.0,0.046401]
[1734446796349,0.04779059,107760.0,107750.0,0.79913759]
[1734446796742,0.04779059,107760.0,107750.0,0.84553859]
[1734446797049,0.00139259,107760.0,107750.0,0.90033079]
[1734446797237,0.046397,107760.0,107750.0,1.44825278]
[1734446797436,0.046397,107760.0,107750.0,1.44828665]
[1734446797639,0.046397,107760.0,107750.0,0.90036466]
[1734446797844,0.046397,107760.0,107750.0,0.85396366]
[1734446798034,0.046397,107760.0,107750.0,0.7992029]
[1734446798943,0.046397,107760.0,107750.0,1.29236656]
[1734446799138,0.046397,107760.0,107750.0,0.7991798]
[1734446799554,0.23845839,107770.0,107750.0,1.29234346]
[1734446799854,0.00011601,107770.0,107760.0,0.90036066]
[1734446800047,0.046389,107780.0,107760.0,0.90036066]
[1734446800244,0.046389,107780.0,107770.0,1.40164441]
[1734446800442,0.046389,107780.0,107770.0,0.90848075]
[1734446800637,0.046389,107780.0,107760.0,2.00183174]
[1734446800838,0.046389,107780.0,107760.0,0.89971913]
[1734446801942,0.407189,107780.0,107760.0,0.407196]
[1734446802138,0.046392,107770.0,107760.0,0.85332313]
[1734446802344,0.046392,107770.0,107750.0,0.85332313]
[1734446802541,0.046392,107770.0,107750.0,0.89972313]
[1734446802737,0.046392,107770.0,107760.0,0.43793482]
[1734446803043,0.046397,107760.0,107750.0,1.40100388]
[1734446803246,0.046397,107760.0,107750.0,0.85332313]
[1734446803644,0.046393,107770.0,107750.0,0.89972313]
[1734446803843,0.092789,107770.0,107760.0,0.49252313]
[1734446804051,0.046393,107770.0,107760.0,0.49252313]
[1734446805341,0.407193,107770.0,107760.0,0.49252313]
[1734446805543,0.046393,107770.0,107760.0,0.49252313]
[1734446805747,0.046393,107770.0,107750.0,1.39320232]
[1734446806048,0.046393,107770.0,107760.0,0.3608]
[1734446806250,0.046389,107780.0,107760.0,0.407196]
[1734446806647,0.046389,107780.0,107770.0,0.3608]
[1734446806848,0.40729178,107790.0,107770.0,0.3608]
[1734446807049,0.00010778,107790.0,107780.0,0.40726911]
[1734446807252,2.65813709,107800.0,107790.0,0.046384]
[1734446807441,2.65813709,107800.0,107790.0,0.86188111]
[1734446807756,2.65813709,107800.0,107790.0,1.35440424]
[1734446807943,2.65813709,107800.0,107790.0,0.86188111]
[1734446809042,1.7108531,107830.0,107790.0,0.86198879]
[1734446809247,0.26703309,107830.0,107820.0,0.92266811]
[1734446809450,0.26703309,107830.0,107820.0,0.76809129]
[1734446809850,0.26703309,107830.0,107820.0,1.06809129]
[1734446810244,0.26703309,107830.0,107820.0,0.76809129]
[1734446810658,0.26703309,107830.0,107820.0,1.06809129]
[1734446810952,0.26703309,107830.0,107820.0,0.76809129]
[1734446811454,0.26703309,107830.0,107820.0,0.72172029]
[1734446811643,0.55161969,107830.0,107820.0,0.00012029]
[1734446811849,0.55161969,107830.0,107820.0,0.36092029]
[1734446812059,0.55161969,107830.0,107820.0,0.00012029]
[1734446812657,0.91241969,107830.0,107820.0,0.00012029]
[1734446812954,2.03352242,107830.0,107820.0,0.00012029]
[1734446813149,1.67272242,107830.0,107820.0,0.00012029]
[1734446813347,0.91241969,107830.0,107820.0,0.00012029]
[1734446813546,0.91241969,107830.0,107780.0,0.3102]
[1734446813547,0.04638,107800.0,107780.0,0.3608]
[1734446813747,0.046389,107780.0,107760.0,0.81455973]
[1734446813947,1.35932233,107800.0,107780.0,0.046387]
[1734446814148,1.16748273,107800.0,107780.0,0.407187]
[1734446814348,0.04638,107800.0,107780.0,0.407187]
[1734446814549,0.046376,107810.0,107790.0,0.00010027]
[1734446814753,0.046376,107810.0,107790.0,0.36090027]
[1734446814947,1.16747873,107810.0,107790.0,0.36090027]
[1734446815148,1.57465773,107810.0,107790.0,0.36090027]
[1734446815349,0.046379,107800.0,107790.0,0.00010027]
[1734446815749,0.6453986,107800.0,107790.0,0.00010027]
[1734446816349,0.407179,107800.0,107790.0,0.00010027]
[1734446816864,0.194779,107800.0,107790.0,0.00010027]
[1734446817059,1.31588173,107800.0,107790.0,0.00010027]
[1734446817459,1.31588173,107800.0,107790.0,0.36090027]
[1734446818054,1.31588173,107800.0,107790.0,0.00010027]
[1734446818464,0.1484,107800.0,107790.0,0.36090027]
[1734446818655,0.194779,107800.0,107790.0,0.36090027]
[1734446819159,0.1484,107800.0,107790.0,0.36090027]
[1734446819353,0.046377,107810.0,107790.0,0.40728427]
[1734446819551,0.046377,107810.0,107800.0,0.3608]
[1734446819752,0.046377,107810.0,107790.0,0.40728427]
[1734446820157,0.046377,107810.0,107790.0,0.36090027]
[1734446820356,0.046379,107800.0,107790.0,0.00010027]
[1734446821159,1.16747873,107810.0,107790.0,0.36090027]
[1734446821368,0.6760126,107820.0,107790.0,0.64550387]
[1734446821553,0.6760126,107820.0,107790.0,0.64549987]
[1734446821554,0.7687596,107820.0,107790.0,0.64549987]
[1734446821753,0.6760126,107820.0,107790.0,0.69187987]
[1734446821957,0.70386363,107820.0,107790.0,0.64549987]
[1734446822359,0.70386363,107820.0,107790.0,0.00010027]
[1734446822360,0.046379,107800.0,107790.0,0.00010027]
[1734446823064,1.16747973,107810.0,107790.0,0.40728327]
[1734446823364,1.16747973,107810.0,107800.0,0.3608]
[1734446823563,0.046377,107810.0,107800.0,0.3608]
[1734446823757,0.046379,107800.0,107790.0,0.36090027]
[1734446823959,0.407179,107800.0,107790.0,0.00010027]
[1734446824367,0.046388,107780.0,107770.0,0.43595585]
[1734446824670,0.046392,107770.0,107750.0,0.4072]
[1734446824869,0.046397,107760.0,107750.0,0.3608]
[1734446825165,0.407197,107760.0,107740.0,0.407204]
[1734446825363,0.046397,107760.0,107750.0,9.253e-05]
[1734446825770,0.407197,107760.0,107750.0,9.253e-05]
[1734446825958,0.64552002,107760.0,107750.0,9.253e-05]
[1734446826159,0.046401,107750.0,107720.0,0.43595585]
[1734446826363,0.40721,107730.0,107720.0,0.49128543]
[1734446826560,0.40721,107730.0,107720.0,0.43765023]
[1734446826767,0.40721,107730.0,107710.0,0.49128543]
[1734446826768,0.6454296,107730.0,107710.0,0.43765023]
[1734446827071,0.046418,107710.0,107700.0,0.89898643]
[1734446827269,0.3608,107720.0,107710.0,0.046418]
[1734446827270,0.046415,107720.0,107710.0,0.046418]
[1734446827458,1.4818102,107730.0,107720.0,0.046414]
[1734446827459,1.52874121,107730.0,107720.0,0.046414]
[1734446827663,1.5282212,107730.0,107720.0,0.046414]
[1734446828874,1.1674212,107730.0,107720.0,0.046414]
[1734446829069,1.1674212,107730.0,107710.0,0.046417]
[1734446829270,1.1674212,107730.0,107700.0,0.85215977]
[1734446829271,1.5282212,107730.0,107700.0,0.85215977]
[1734446829464,1.1674202,107730.0,107710.0,0.6454366]
[1734446829659,1.1210102,107730.0,107720.0,0.2846336]
[1734446829868,1.1674202,107730.0,107710.0,0.407217]
[1734446830061,1.1210102,107730.0,107720.0,0.046414]
[1734446830476,1.1674202,107730.0,107710.0,0.407217]
[1734446830664,1.1210102,107730.0,107720.0,0.2382196]
[1734446830859,0.49586,107740.0,107720.0,0.6454336]
[1734446831059,1.54682913,107750.0,107720.0,0.6454336]
[1734446831060,0.00052001,107750.0,107730.0,0.5990196]
[1734446831260,0.00010342,107760.0,107750.0,0.046401]
[1734446831468,0.00010342,107760.0,107750.0,0.64551345]
[1734446832362,0.00010342,107760.0,107750.0,0.94551345]
[1734446832769,0.3029,107810.0,107780.0,0.046384]
[1734446832770,0.349276,107810.0,107780.0,0.046384]
[1734446833068,0.046379,107800.0,107780.0,0.6454036]
[1734446833270,0.046379,107800.0,107790.0,0.3608]
[1734446833469,1.1673862,107810.0,107790.0,0.407181]
[1734446833673,1.1673852,107810.0,107800.0,0.3608]
[1734446833878,0.19514783,107820.0,107800.0,0.36086684]
[1734446834170,0.19514783,107820.0,107800.0,0.40724484]
[1734446834374,0.19514783,107820.0,107800.0,0.36086684]
[1734446834871,0.046375,107810.0,107800.0,0.36086684]
[1734446835277,0.19514883,107820.0,107800.0,6.684e-05]
[1734446835476,0.046375,107810.0,107800.0,6.684e-05]
[1734446836063,1.1673852,107810.0,107800.0,6.684e-05]
[1734446836678,0.046387,107790.0,107770.0,0.3608]
[1734446837069,0.046387,107790.0,107760.0,0.6454156]
[1734446837264,0.04638,107800.0,107780.0,0.3608]
[1734446837464,0.04638,107800.0,107780.0,0.407188]
[1734446837671,1.5281902,107800.0,107790.0,9.257e-05]
[1734446837878,1.1210102,107800.0,107790.0,0.36089257]
[1734446838076,1.1210102,107800.0,107790.0,0.40727657]
[1734446838480,1.1210102,107800.0,107790.0,0.64549617]
[1734446838772,0.04696784,107820.0,107800.0,0.046378]
[1734446838978,0.04644783,107820.0,107800.0,0.046378]
[1734446839174,1.16745803,107820.0,107790.0,0.59911217]
[1734446839365,1.12108603,107820.0,107790.0,0.40727457]
[1734446839569,0.04644783,107820.0,107800.0,0.407178]
[1734446839778,7.583e-05,107820.0,107810.0,0.407175]
[1734446840566,7.583e-05,107820.0,107810.0,0.6453946]
[1734446841575,7.583e-05,107820.0,107810.0,0.407175]
[1734446842372,0.04644683,107820.0,107810.0,0.3608]
[1734446842567,0.04644683,107820.0,107800.0,0.407179]
[1734446842771,1.16745703,107820.0,107810.0,0.3608]
[1734446842978,0.04644683,107820.0,107810.0,0.3608]
[1734446843167,0.23468266,107830.0,107810.0,0.6453946]
[1734446843371,0.23468266,107830.0,107820.0,0.407171]
[1734446843574,0.23468266,107830.0,107820.0,0.3608]
[1734446843873,0.23468266,107830.0,107800.0,0.407178]
[1734446843874,0.68822066,107830.0,107800.0,0.407178]
[1734446844079,0.68822066,107830.0,107810.0,0.3608]
[1734446844279,1.71649286,107830.0,107810.0,0.3608]
[1734446844477,1.35569286,107830.0,107820.0,0.5990196]
[1734446844674,0.23468266,107830.0,107820.0,0.407171]
[1734446846074,0.23468266,107830.0,107820.0,0.3608]
[1734446846269,0.28104966,107830.0,107820.0,0.3608]
[1734446846476,0.28104966,107830.0,107810.0,0.407172]
[1734446846679,1.40205986,107830.0,107820.0,0.3608]
[1734446846985,1.35569286,107830.0,107820.0,0.407171]
[1734446847172,1.35569286,107830.0,107820.0,0.3608]
[1734446847173,1.40205986,107830.0,107820.0,0.3608]
[1734446847375,1.35569286,107830.0,107820.0,0.407171]
[1734446847567,1.35569286,107830.0,107820.0,0.3608]
[1734446847568,0.23468266,107830.0,107820.0,0.3608]
[1734446847769,1.40205986,107830.0,107810.0,0.6453936]
[1734446847984,1.40205986,107830.0,107810.0,0.407174]
[1734446848282,1.40205986,107830.0,107810.0,0.3608]
[1734446848585,0.046371,107820.0,107800.0,0.407178]
[1734446849084,0.23468266,107830.0,107820.0,0.046371]
[1734446849275,0.23468266,107830.0,107820.0,0.407171]
[1734446850879,0.23468266,107830.0,107820.0,0.25082438]
[1734446851082,0.23468266,107830.0,107790.0,0.40727557]
[1734446851083,1.04634213,107830.0,107790.0,0.40727557]
[1734446851281,0.046377,107810.0,107790.0,0.40727557]
[1734446851680,1.1673872,107810.0,107790.0,0.40727557]
[1734446852180,1.1210102,107820.0,107810.0,0.046375]
[1734446852387,0.18468266,107830.0,107820.0,0.046371]
[1734446852587,0.18468266,107830.0,107820.0,0.56166047]
[1734446853282,0.18468266,107830.0,107820.0,0.407171]
[1734446854690,0.18468266,107830.0,107820.0,0.56166047]
[1734446854880,0.18468266,107830.0,107820.0,0.86175749]
[1734446854881,0.1845896,107830.0,107820.0,0.86175749]
[1734446856086,0.1845896,107830.0,107820.0,0.8616886]